[Event "*** Titled Tuesday Blitz"]
[Site "Chess.com"]
[Date "2019.03.05"]
[Round "5"]
[White "TST2014"]
[Black "SaraciNderim"]
[Result "0-1"]
[WhiteElo "2516"]
[BlackElo "2735"]
[TimeControl "180+2"]
[EndTime "14:13:37 PST"]
[Termination "SaraciNderim won by checkmate"]

1. d4 {[%clk 0:03:01.9]} 1... Nf6 {[%clk 0:02:59.1]} 2. c4 {[%clk 0:03:01.4]}
2... g6 {[%clk 0:02:59.9]} 3. Nc3 {[%clk 0:03:01.8]} 3... Bg7 {[%clk 0:03:01.1]}
4. e4 {[%clk 0:03:02.8]} 4... d6 {[%clk 0:03:02.5]} 5. Nf3 {[%clk 0:03:03.9]}
5... O-O {[%clk 0:03:03.5]} 6. Be2 {[%clk 0:03:05.1]} 6... Na6 {[%clk
0:03:04.9]} 7. O-O {[%clk 0:03:05.9]} 7... e5 {[%clk 0:03:05.8]} 8. Be3 {[%clk
0:03:07]} 8... exd4 {[%clk 0:02:40.4]} 9. Nxd4 {[%clk 0:03:07.3]} 9... Re8
{[%clk 0:02:40]} 10. f3 {[%clk 0:03:07.2]} 10... Nc5 {[%clk 0:02:41.1]} 11. Qd2
{[%clk 0:03:02]} 11... a5 {[%clk 0:02:35]} 12. Rfd1 {[%clk 0:03:02.4]} 12... Bd7
{[%clk 0:02:34.2]} 13. Ndb5 {[%clk 0:02:57.5]} 13... b6 {[%clk 0:02:27]} 14. Kh1
{[%clk 0:02:54.5]} 14... Nh5 {[%clk 0:02:24.5]} 15. Bg5 {[%clk 0:02:37.9]} 15...
Bf6 {[%clk 0:02:19.3]} 16. Be3 {[%clk 0:02:23]} 16... Rc8 {[%clk 0:02:17.2]} 17.
Nd5 {[%clk 0:02:22.9]} 17... Bxb5 {[%clk 0:01:35.4]} 18. cxb5 {[%clk 0:02:19.7]}
18... Bg7 {[%clk 0:01:26.5]} 19. Bg5 {[%clk 0:02:17.6]} 19... Nf6 {[%clk
0:00:54.4]} 20. Bc4 {[%clk 0:01:51.5]} 20... Ne6 {[%clk 0:00:42.8]} 21. Bh4
{[%clk 0:01:47.8]} 21... Nxe4 {[%clk 0:00:35.5]} 22. Qe1 {[%clk 0:01:24.8]}
22... Nf6 {[%clk 0:00:35.9]} 23. Qd2 {[%clk 0:01:08.6]} 23... h6 {[%clk
0:00:25.5]} 24. f4 {[%clk 0:00:56.3]} 24... g5 {[%clk 0:00:15.2]} 25. fxg5
{[%clk 0:00:55]} 25... Ne4 {[%clk 0:00:12.2]} 26. Qc2 {[%clk 0:00:50.5]} 26...
Nd4 {[%clk 0:00:11]} 27. Qd3 {[%clk 0:00:29.5]} 27... hxg5 {[%clk 0:00:11.5]}
28. Be1 {[%clk 0:00:27.7]} 28... Nc5 {[%clk 0:00:11]} 29. Qg3 {[%clk 0:00:26.1]}
29... Nde6 {[%clk 0:00:12.2]} 30. Bc3 {[%clk 0:00:25.6]} 30... Ne4 {[%clk
0:00:11.8]} 31. Qf3 {[%clk 0:00:21.5]} 31... Nxc3 {[%clk 0:00:13]} 32. Nxc3
{[%clk 0:00:22.4]} 32... Qf6 {[%clk 0:00:12.9]} 33. Qxf6 {[%clk 0:00:21.6]}
33... Bxf6 {[%clk 0:00:14.8]} 34. Rf1 {[%clk 0:00:21.9]} 34... Bxc3 {[%clk
0:00:14.5]} 35. bxc3 {[%clk 0:00:23]} 35... Kg7 {[%clk 0:00:15.9]} 36. Rf5
{[%clk 0:00:22.8]} 36... f6 {[%clk 0:00:12.4]} 37. Raf1 {[%clk 0:00:24]} 37...
Nf4 {[%clk 0:00:13.5]} 38. g3 {[%clk 0:00:23.9]} 38... Nh5 {[%clk 0:00:14.8]}
39. Bd5 {[%clk 0:00:20.6]} 39... Re5 {[%clk 0:00:15.3]} 40. c4 {[%clk
0:00:18.2]} 40... Rce8 {[%clk 0:00:15.6]} 41. R5f2 {[%clk 0:00:16.7]} 41... Re1
{[%clk 0:00:13.7]} 42. Bf3 {[%clk 0:00:17.2]} 42... Rxf1+ {[%clk 0:00:13.8]} 43.
Rxf1 {[%clk 0:00:18.3]} 43... Rh8 {[%clk 0:00:12.4]} 44. Kg2 {[%clk 0:00:18.6]}
44... Kf7 {[%clk 0:00:07.1]} 45. Re1 {[%clk 0:00:19.3]} 45... Ng7 {[%clk
0:00:08]} 46. Bd5+ {[%clk 0:00:20.3]} 46... Kg6 {[%clk 0:00:09.3]} 47. Re7
{[%clk 0:00:21.1]} 47... Rc8 {[%clk 0:00:05.7]} 48. Bb7 {[%clk 0:00:21.6]} 48...
Re8 {[%clk 0:00:05.3]} 49. Rxc7 {[%clk 0:00:22.2]} 49... Re2+ {[%clk 0:00:06.1]}
50. Kf3 {[%clk 0:00:23.3]} 50... Rxa2 {[%clk 0:00:07.1]} 51. Rc6 {[%clk
0:00:23]} 51... Ra3+ {[%clk 0:00:06.9]} 52. Ke4 {[%clk 0:00:23.5]} 52... Nf5
{[%clk 0:00:06.1]} 53. Bc8 {[%clk 0:00:22.6]} 53... Re3+ {[%clk 0:00:07]} 54.
Kd5 {[%clk 0:00:23.9]} 54... Re5# {[%clk 0:00:08.9]} 0-1

[Event "*** Titled Tuesday Blitz"]
[Site "Chess.com"]
[Date "2019.03.05"]
[Round "5"]
[White "NeverEverForever1990"]
[Black "Shahinyan_ChessMood"]
[Result "1/2-1/2"]
[WhiteElo "2363"]
[BlackElo "2625"]
[TimeControl "180+2"]
[EndTime "14:13:42 PST"]
[Termination "Game drawn by repetition"]

1. d4 {[%clk 0:02:49.6]} 1... e6 {[%clk 0:02:59.4]} 2. Nf3 {[%clk 0:02:49.7]}
2... f5 {[%clk 0:03:00.5]} 3. g3 {[%clk 0:02:50.1]} 3... Nf6 {[%clk 0:03:02.4]}
4. Bg2 {[%clk 0:02:51.6]} 4... d5 {[%clk 0:03:03.6]} 5. O-O {[%clk 0:02:52.8]}
5... c6 {[%clk 0:03:05.1]} 6. Ne5 {[%clk 0:02:48.8]} 6... Bd6 {[%clk 0:03:06.8]}
7. Bf4 {[%clk 0:02:49.3]} 7... O-O {[%clk 0:03:07.7]} 8. c4 {[%clk 0:02:50.3]}
8... Qe7 {[%clk 0:03:08.9]} 9. Nd2 {[%clk 0:02:42.4]} 9... Nbd7 {[%clk
0:03:09.5]} 10. Nxd7 {[%clk 0:02:42.6]} 10... Bxd7 {[%clk 0:03:10]} 11. Bxd6
{[%clk 0:02:43.8]} 11... Qxd6 {[%clk 0:03:11.9]} 12. c5 {[%clk 0:02:45]} 12...
Qe7 {[%clk 0:03:09.7]} 13. Nf3 {[%clk 0:02:40.2]} 13... Be8 {[%clk 0:03:10.3]}
14. Ne5 {[%clk 0:02:23.6]} 14... Nd7 {[%clk 0:03:07.6]} 15. Nxd7 {[%clk
0:02:22.7]} 15... Qxd7 {[%clk 0:03:09.5]} 16. Qd2 {[%clk 0:02:21.1]} 16... Qe7
{[%clk 0:03:07.6]} 17. Qf4 {[%clk 0:02:20.4]} 17... Bh5 {[%clk 0:03:07.9]} 18.
Bf3 {[%clk 0:02:11.4]} 18... Bxf3 {[%clk 0:03:06.1]} 19. exf3 {[%clk 0:02:12.9]}
19... b6 {[%clk 0:03:01.1]} 20. b4 {[%clk 0:02:12.2]} 20... Rfb8 {[%clk
0:02:56.8]} 21. Rfe1 {[%clk 0:02:08.6]} 21... a5 {[%clk 0:02:57.6]} 22. a3
{[%clk 0:02:05.2]} 22... bxc5 {[%clk 0:02:46.5]} 23. bxc5 {[%clk 0:02:04.8]}
23... Kf7 {[%clk 0:02:47.9]} 24. Re5 {[%clk 0:02:02.4]} 24... Qf6 {[%clk
0:02:20.8]} 25. Rae1 {[%clk 0:02:00.5]} 25... Re8 {[%clk 0:02:21.3]} 26. Qd2
{[%clk 0:01:47.2]} 26... Qd8 {[%clk 0:02:15.3]} 27. Kg2 {[%clk 0:01:43.1]} 27...
Rb8 {[%clk 0:02:15.2]} 28. Qf4 {[%clk 0:01:43.7]} 28... Qf6 {[%clk 0:02:13.8]}
29. Rxe6 {[%clk 0:01:35.6]} 29... Rxe6 {[%clk 0:01:25.8]} 30. Rxe6 {[%clk
0:01:37.5]} 30... Kxe6 {[%clk 0:01:10.4]} 31. Qxb8 {[%clk 0:01:31.6]} 31... Kf7
{[%clk 0:01:11.1]} 32. Qc7+ {[%clk 0:01:30.3]} 32... Kg6 {[%clk 0:01:10.6]} 33.
f4 {[%clk 0:01:19.9]} 33... h5 {[%clk 0:00:57.4]} 34. Qe5 {[%clk 0:01:16.6]}
34... Qf7 {[%clk 0:00:16.9]} 35. Qd6+ {[%clk 0:01:14.3]} 35... Qf6 {[%clk
0:00:17.6]} 36. Qxf6+ {[%clk 0:01:14.9]} 36... Kxf6 {[%clk 0:00:19.5]} 37. Kf3
{[%clk 0:01:13.1]} 37... Ke6 {[%clk 0:00:20.7]} 38. Ke3 {[%clk 0:01:14.4]} 38...
Kd7 {[%clk 0:00:21.8]} 39. f3 {[%clk 0:01:15.5]} 39... Kc7 {[%clk 0:00:19.4]}
40. h3 {[%clk 0:01:14.1]} 40... g6 {[%clk 0:00:18.3]} 41. g4 {[%clk 0:01:09.4]}
41... h4 {[%clk 0:00:18.5]} 42. Kd3 {[%clk 0:01:08.1]} 42... Kb7 {[%clk
0:00:19.3]} 43. Kc3 {[%clk 0:01:09.4]} 43... Ka6 {[%clk 0:00:20.8]} 44. Kb3
{[%clk 0:01:10.6]} 44... Kb5 {[%clk 0:00:22.3]} 45. a4+ {[%clk 0:01:08.4]} 45...
Ka6 {[%clk 0:00:23]} 46. Kc2 {[%clk 0:01:09.6]} 46... Kb7 {[%clk 0:00:23.2]} 47.
Kd3 {[%clk 0:01:10.6]} 47... Kc7 {[%clk 0:00:24]} 48. Ke2 {[%clk 0:01:12]} 48...
Kd7 {[%clk 0:00:23.7]} 49. Ke3 {[%clk 0:01:13.4]} 49... Ke7 {[%clk 0:00:24.8]}
50. Kf2 {[%clk 0:01:14.6]} 50... Kf7 {[%clk 0:00:25.9]} 51. Kg2 {[%clk
0:01:15.4]} 51... Ke7 {[%clk 0:00:19.8]} 52. Kf1 {[%clk 0:01:16]} 52... Kf7
{[%clk 0:00:15.8]} 53. Ke2 {[%clk 0:01:17.2]} 53... Ke7 {[%clk 0:00:17.1]} 54.
Kd1 {[%clk 0:01:18.4]} 54... Kf7 {[%clk 0:00:18.6]} 55. Kc1 {[%clk 0:01:18.9]}
55... Ke7 {[%clk 0:00:20]} 56. Kb1 {[%clk 0:01:20.1]} 56... Kf7 {[%clk
0:00:21.4]} 57. Ka1 {[%clk 0:01:21.6]} 57... Ke7 {[%clk 0:00:22.9]} 58. Ka2
{[%clk 0:01:23.5]} 58... Kf7 {[%clk 0:00:24.4]} 59. Ka3 {[%clk 0:01:25.4]} 59...
Ke7 {[%clk 0:00:25.9]} 60. Kb3 {[%clk 0:01:26.9]} 60... Kf7 {[%clk 0:00:27.4]}
61. Kb2 {[%clk 0:01:28.6]} 61... Ke7 {[%clk 0:00:28.9]} 62. Kc3 {[%clk
0:01:30.2]} 62... Kf7 {[%clk 0:00:30.4]} 63. Kc2 {[%clk 0:01:31.9]} 63... Ke7
{[%clk 0:00:31.8]} 64. Kc1 {[%clk 0:01:33.6]} 64... Kf7 {[%clk 0:00:31.5]} 65.
Kd1 {[%clk 0:01:35.1]} 65... Ke7 {[%clk 0:00:32.8]} 66. Kd2 {[%clk 0:01:36.7]}
66... Kf7 {[%clk 0:00:34.2]} 67. Kd3 {[%clk 0:01:38.4]} 67... Ke7 {[%clk
0:00:35.7]} 68. Ke3 {[%clk 0:01:40.1]} 68... Kf7 {[%clk 0:00:37.2]} 69. Ke2
{[%clk 0:01:41.8]} 69... Ke7 {[%clk 0:00:38.7]} 70. Ke1 {[%clk 0:01:43.4]} 70...
Kf7 {[%clk 0:00:40.2]} 71. Kf2 {[%clk 0:01:45.1]} 71... Ke7 {[%clk 0:00:41.7]}
72. Kf1 {[%clk 0:01:46.7]} 72... Kf7 {[%clk 0:00:43.1]} 73. Kg2 {[%clk
0:01:48.4]} 73... Ke7 {[%clk 0:00:44.6]} 74. Kg1 {[%clk 0:01:50.1]} 74... Kf7
{[%clk 0:00:46]} 75. Kh2 {[%clk 0:01:51.8]} 75... Ke7 {[%clk 0:00:47.4]} 76. Kh1
{[%clk 0:01:53.4]} 76... Kf7 {[%clk 0:00:48.9]} 77. Kg2 {[%clk 0:01:55.3]} 77...
Ke7 {[%clk 0:00:50.2]} 78. gxf5 {[%clk 0:01:57.2]} 78... gxf5 {[%clk 0:00:50.9]}
79. Kf2 {[%clk 0:01:58.6]} 79... Kd7 {[%clk 0:00:52.8]} 80. Ke3 {[%clk
0:02:00.5]} 80... Ke7 {[%clk 0:00:54.7]} 81. Ke2 {[%clk 0:02:02.4]} 81... Kd7
{[%clk 0:00:56.6]} 82. Kd3 {[%clk 0:02:04.3]} 82... Ke7 {[%clk 0:00:58.5]} 83.
Kd2 {[%clk 0:02:06.2]} 83... Kd7 {[%clk 0:01:00.4]} 84. Ke3 {[%clk 0:02:08.1]}
84... Ke7 {[%clk 0:01:02.3]} 85. Ke2 {[%clk 0:02:10]} 85... Kd7 {[%clk
0:01:04.2]} 86. Kd3 {[%clk 0:02:11.9]} 86... Ke7 {[%clk 0:01:06]} 87. Kd2 {[%clk
0:02:13.8]} 87... Kd7 {[%clk 0:01:07.9]} 88. Ke3 {[%clk 0:02:15.7]} 1/2-1/2

[Event "*** Titled Tuesday Blitz"]
[Site "Chess.com"]
[Date "2019.03.05"]
[Round "5"]
[White "Annawel"]
[Black "Angry_Serb"]
[Result "1-0"]
[WhiteElo "2898"]
[BlackElo "2570"]
[TimeControl "180+2"]
[EndTime "14:13:45 PST"]
[Termination "Annawel won by resignation"]

1. a3 {[%clk 0:02:50.3]} 1... g5 {[%clk 0:02:54.7]} 2. d4 {[%clk 0:02:49.6]}
2... Bg7 {[%clk 0:02:53]} 3. h4 {[%clk 0:02:51.5]} 3... g4 {[%clk 0:02:51.8]} 4.
h5 {[%clk 0:02:51.3]} 4... Nh6 {[%clk 0:02:51.2]} 5. e4 {[%clk 0:02:50.1]} 5...
g3 {[%clk 0:02:51]} 6. fxg3 {[%clk 0:02:41.2]} 6... c5 {[%clk 0:02:40]} 7. Nf3
{[%clk 0:02:28.8]} 7... cxd4 {[%clk 0:02:35.3]} 8. Bd3 {[%clk 0:02:21.5]} 8...
Nc6 {[%clk 0:02:29.3]} 9. O-O {[%clk 0:01:52.9]} 9... d6 {[%clk 0:02:19.2]} 10.
Nbd2 {[%clk 0:01:38]} 10... Bg4 {[%clk 0:02:19.3]} 11. Nc4 {[%clk 0:01:38.7]}
11... b5 {[%clk 0:01:55.1]} 12. Ncd2 {[%clk 0:01:38.4]} 12... Qb6 {[%clk
0:01:56.7]} 13. a4 {[%clk 0:01:38.8]} 13... b4 {[%clk 0:01:57.6]} 14. Nc4 {[%clk
0:01:38.7]} 14... Qc5 {[%clk 0:01:59.1]} 15. Qe1 {[%clk 0:01:22]} 15... Qxh5
{[%clk 0:01:54.8]} 16. Nh4 {[%clk 0:01:20.9]} 16... O-O {[%clk 0:01:43.2]} 17.
Bf4 {[%clk 0:01:04.9]} 17... Rab8 {[%clk 0:01:32.9]} 18. Qd2 {[%clk 0:00:55.5]}
18... Ne5 {[%clk 0:01:30.5]} 19. a5 {[%clk 0:00:45.2]} 19... b3 {[%clk
0:01:21.9]} 20. cxb3 {[%clk 0:00:41]} 20... Rxb3 {[%clk 0:01:23.8]} 21. Bxe5
{[%clk 0:00:35]} 21... dxe5 {[%clk 0:01:23.1]} 22. Qc2 {[%clk 0:00:29.2]} 22...
Rxd3 {[%clk 0:01:23.8]} 23. Qxd3 {[%clk 0:00:30.1]} 23... Be2 {[%clk 0:01:25.5]}
24. Qc2 {[%clk 0:00:26.5]} 24... Rc8 {[%clk 0:01:19.3]} 25. b3 {[%clk
0:00:27.8]} 25... d3 {[%clk 0:00:58.8]} 26. Qd2 {[%clk 0:00:28.8]} 26... Ng4
{[%clk 0:00:57.2]} 27. Rf5 {[%clk 0:00:28.1]} 27... Qh6 {[%clk 0:00:54]} 28.
Qxh6 {[%clk 0:00:18.1]} 28... Bxh6 {[%clk 0:00:55.9]} 29. Nf3 {[%clk 0:00:19.6]}
29... f6 {[%clk 0:00:41.9]} 30. Rh5 {[%clk 0:00:17.9]} 30... Kg7 {[%clk
0:00:41.8]} 31. Rh4 {[%clk 0:00:18.4]} 31... Ne3 {[%clk 0:00:39.9]} 32. Kf2
{[%clk 0:00:13.2]} 32... Nxc4 {[%clk 0:00:39.6]} 33. bxc4 {[%clk 0:00:14.4]}
33... Rxc4 {[%clk 0:00:41.3]} 34. Rah1 {[%clk 0:00:15.5]} 34... Bc1 {[%clk
0:00:25.4]} 35. Rxh7+ {[%clk 0:00:16.4]} 35... Kf8 {[%clk 0:00:27.1]} 36. Rh8+
{[%clk 0:00:15.6]} 36... Kf7 {[%clk 0:00:28.7]} 37. Rd8 {[%clk 0:00:10.4]} 37...
Rxe4 {[%clk 0:00:26]} 38. Rxc1 {[%clk 0:00:10.5]} 38... Ra4 {[%clk 0:00:17.9]}
39. Ng1 {[%clk 0:00:11.6]} 39... Ra2 {[%clk 0:00:16.3]} 40. Nxe2 {[%clk
0:00:12.3]} 40... Rxe2+ {[%clk 0:00:18.2]} 41. Kf1 {[%clk 0:00:13.8]} 41... e4
{[%clk 0:00:19.9]} 42. Rd7 {[%clk 0:00:13.3]} 42... f5 {[%clk 0:00:15.8]} 43.
Re1 {[%clk 0:00:05.9]} 43... Ra2 {[%clk 0:00:15.7]} 44. g4 {[%clk 0:00:07.3]}
44... d2 {[%clk 0:00:13.8]} 45. Rd1 {[%clk 0:00:07.6]} 45... e3 {[%clk
0:00:15.4]} 46. gxf5 {[%clk 0:00:08]} 46... Rxa5 {[%clk 0:00:12.8]} 47. Ke2
{[%clk 0:00:08.2]} 47... Re5 {[%clk 0:00:14.5]} 48. Rd3 {[%clk 0:00:08.7]} 48...
Rxf5 {[%clk 0:00:13.9]} 49. Rxe3 {[%clk 0:00:09.8]} 49... Rg5 {[%clk 0:00:15.2]}
50. g3 {[%clk 0:00:10.7]} 50... Rh5 {[%clk 0:00:12.8]} 51. Rxd2 {[%clk
0:00:12.6]} 51... Ra5 {[%clk 0:00:12.5]} 52. Rdd3 {[%clk 0:00:13.5]} 52... e6
{[%clk 0:00:12.9]} 53. Kf3 {[%clk 0:00:14.9]} 53... Rf5+ {[%clk 0:00:13.4]} 54.
Ke4 {[%clk 0:00:16.1]} 54... Rb5 {[%clk 0:00:15.3]} 55. Rb3 {[%clk 0:00:17.4]}
55... Rd5 {[%clk 0:00:15.9]} 56. Rb7+ {[%clk 0:00:18.7]} 56... Kf6 {[%clk
0:00:17]} 57. Rf3+ {[%clk 0:00:20.3]} 57... Kg6 {[%clk 0:00:17.7]} 58. Rxa7
{[%clk 0:00:22]} 58... Rb5 {[%clk 0:00:18.8]} 59. Ra6 {[%clk 0:00:23.2]} 1-0

[Event "*** Titled Tuesday Blitz"]
[Site "Chess.com"]
[Date "2019.03.05"]
[Round "5"]
[White "MikaelyanArman"]
[Black "murmah2003"]
[Result "1/2-1/2"]
[WhiteElo "2717"]
[BlackElo "2544"]
[TimeControl "180+2"]
[EndTime "14:13:47 PST"]
[Termination "Game drawn by stalemate"]

1. e4 {[%clk 0:02:31.4]} 1... d6 {[%clk 0:02:59.4]} 2. d4 {[%clk 0:02:32.1]}
2... Nf6 {[%clk 0:03:00.4]} 3. Nc3 {[%clk 0:02:31.1]} 3... g6 {[%clk 0:03:01.7]}
4. Be3 {[%clk 0:02:31.3]} 4... a6 {[%clk 0:03:01.6]} 5. Qd2 {[%clk 0:02:30]}
5... b5 {[%clk 0:02:43.2]} 6. f3 {[%clk 0:02:30.8]} 6... Nbd7 {[%clk 0:02:41.4]}
7. O-O-O {[%clk 0:02:30.5]} 7... Nb6 {[%clk 0:02:41.2]} 8. g4 {[%clk 0:02:12.2]}
8... h5 {[%clk 0:02:07.4]} 9. g5 {[%clk 0:02:11.5]} 9... Nfd7 {[%clk 0:02:08.7]}
10. e5 {[%clk 0:02:03.3]} 10... Bg7 {[%clk 0:01:27.1]} 11. f4 {[%clk 0:01:54.7]}
11... Bb7 {[%clk 0:01:24.9]} 12. d5 {[%clk 0:01:39.1]} 12... dxe5 {[%clk
0:01:22.9]} 13. Nf3 {[%clk 0:01:28.8]} 13... b4 {[%clk 0:01:10.3]} 14. Ne4
{[%clk 0:01:29.5]} 14... Bxd5 {[%clk 0:01:02.8]} 15. Bd3 {[%clk 0:01:18.3]}
15... exf4 {[%clk 0:01:03]} 16. Bd4 {[%clk 0:01:05.4]} 16... e5 {[%clk
0:00:35.8]} 17. Bxb6 {[%clk 0:00:48]} 17... Nxb6 {[%clk 0:00:20.9]} 18. Qxb4
{[%clk 0:00:49]} 18... Qe7 {[%clk 0:00:22.1]} 19. Qa5 {[%clk 0:00:39.4]} 19...
O-O {[%clk 0:00:20.1]} 20. Rhe1 {[%clk 0:00:40.5]} 20... Rfd8 {[%clk 0:00:17.2]}
21. Nf6+ {[%clk 0:00:34]} 21... Bxf6 {[%clk 0:00:13.9]} 22. gxf6 {[%clk
0:00:35.9]} 22... Qxf6 {[%clk 0:00:15.8]} 23. Nxe5 {[%clk 0:00:37.2]} 23... f3
{[%clk 0:00:14.3]} 24. Nxg6 {[%clk 0:00:14.5]} 24... fxg6 {[%clk 0:00:12.7]} 25.
Rg1 {[%clk 0:00:15.6]} 25... Bf7 {[%clk 0:00:12.5]} 26. Rdf1 {[%clk 0:00:13.5]}
26... Rd4 {[%clk 0:00:11.4]} 27. Qxh5 {[%clk 0:00:12.3]} 27... Rxd3 {[%clk
0:00:08.3]} 28. cxd3 {[%clk 0:00:11.6]} 28... Na4 {[%clk 0:00:07.8]} 29. Rf2
{[%clk 0:00:08.5]} 29... Rb8 {[%clk 0:00:05.5]} 30. Qxf3 {[%clk 0:00:06.9]}
30... Qxf3 {[%clk 0:00:04]} 31. Rxf3 {[%clk 0:00:08.8]} 31... Nxb2 {[%clk
0:00:05.9]} 32. h4 {[%clk 0:00:06.7]} 32... Na4 {[%clk 0:00:05.1]} 33. h5 {[%clk
0:00:07.6]} 33... Nc3 {[%clk 0:00:06.5]} 34. Rg5 {[%clk 0:00:05]} 34... Ne2+
{[%clk 0:00:05.6]} 35. Kd2 {[%clk 0:00:06.1]} 35... Rb2+ {[%clk 0:00:06.8]} 36.
Ke3 {[%clk 0:00:07]} 36... Kg7 {[%clk 0:00:04.3]} 37. hxg6 {[%clk 0:00:07.8]}
37... Bxg6 {[%clk 0:00:06.2]} 38. Rg2 {[%clk 0:00:05.6]} 38... Nc3 {[%clk
0:00:03.3]} 39. Rxb2 {[%clk 0:00:06.5]} 39... Nd1+ {[%clk 0:00:04.8]} 40. Kd4
{[%clk 0:00:08.1]} 40... Nxb2 {[%clk 0:00:06.7]} 41. Rf2 {[%clk 0:00:07.6]}
41... Nxd3 {[%clk 0:00:07.5]} 42. Rc2 {[%clk 0:00:04.5]} 42... c5+ {[%clk
0:00:08.8]} 43. Rxc5 {[%clk 0:00:05.2]} 43... Nxc5 {[%clk 0:00:04.5]} 44. Kxc5
{[%clk 0:00:07.1]} 44... Bd3 {[%clk 0:00:05.4]} 45. Kb4 {[%clk 0:00:08.1]} 45...
Bf1 {[%clk 0:00:07.3]} 46. Kc3 {[%clk 0:00:09.1]} 46... Kf6 {[%clk 0:00:09.2]}
47. Kb2 {[%clk 0:00:10.5]} 47... Ke5 {[%clk 0:00:10.3]} 48. Ka1 {[%clk
0:00:11.7]} 48... Kd4 {[%clk 0:00:11.2]} 49. a4 {[%clk 0:00:13.1]} 49... Kc3
{[%clk 0:00:10.5]} 50. a5 {[%clk 0:00:14]} 50... Kc2 {[%clk 0:00:10.4]} 51. Ka2
{[%clk 0:00:15]} 51... Bc4+ {[%clk 0:00:10.5]} 52. Ka1 {[%clk 0:00:16.9]} 52...
Bb3 {[%clk 0:00:10.4]} 1/2-1/2

[Event "*** Titled Tuesday Blitz"]
[Site "Chess.com"]
[Date "2019.03.05"]
[Round "5"]
[White "mjray79"]
[Black "ALEXJR20"]
[Result "0-1"]
[WhiteElo "2107"]
[BlackElo "2179"]
[TimeControl "180+2"]
[EndTime "14:13:49 PST"]
[Termination "ALEXJR20 won on time"]

1. d4 {[%clk 0:03:01.9]} 1... d5 {[%clk 0:02:59.3]} 2. c4 {[%clk 0:03:01.8]}
2... c6 {[%clk 0:03:00.8]} 3. Nf3 {[%clk 0:03:01.4]} 3... Nf6 {[%clk 0:03:01.8]}
4. Nc3 {[%clk 0:03:03.1]} 4... e6 {[%clk 0:03:01.3]} 5. Bg5 {[%clk 0:03:02.5]}
5... h6 {[%clk 0:03:01.7]} 6. Bh4 {[%clk 0:03:03.4]} 6... dxc4 {[%clk
0:03:01.1]} 7. e4 {[%clk 0:03:02.7]} 7... g5 {[%clk 0:03:02.1]} 8. Bg3 {[%clk
0:03:03.9]} 8... b5 {[%clk 0:03:03.2]} 9. e5 {[%clk 0:03:03.6]} 9... Nd5 {[%clk
0:03:03.8]} 10. Nd2 {[%clk 0:03:04.5]} 10... h5 {[%clk 0:02:37.4]} 11. h4 {[%clk
0:03:00.4]} 11... g4 {[%clk 0:02:33.2]} 12. Nde4 {[%clk 0:02:56.7]} 12... Be7
{[%clk 0:02:34.4]} 13. Be2 {[%clk 0:02:53.7]} 13... Bb7 {[%clk 0:02:34.7]} 14.
f3 {[%clk 0:02:53.2]} 14... Ne3 {[%clk 0:02:29.7]} 15. Qd2 {[%clk 0:02:51.6]}
15... Nxg2+ {[%clk 0:02:31.1]} 16. Kf2 {[%clk 0:02:50.4]} 16... Nxh4 {[%clk
0:02:29]} 17. fxg4 {[%clk 0:02:49.9]} 17... hxg4 {[%clk 0:02:13.2]} 18. Bxg4
{[%clk 0:02:49.7]} 18... Rg8 {[%clk 0:02:02]} 19. Bh5 {[%clk 0:02:44.2]} 19...
c5 {[%clk 0:01:49.8]} 20. Bxf7+ {[%clk 0:02:34.9]} 20... Kxf7 {[%clk 0:01:49.2]}
21. Qf4+ {[%clk 0:02:35.4]} 21... Nf5 {[%clk 0:01:50.6]} 22. Rh7+ {[%clk
0:02:27.9]} 22... Ke8 {[%clk 0:01:44.4]} 23. dxc5 {[%clk 0:02:21.3]} 23... b4
{[%clk 0:01:36.8]} 24. Nd6+ {[%clk 0:02:08.1]} 24... Bxd6 {[%clk 0:01:31.4]} 25.
exd6 {[%clk 0:02:07.1]} 25... bxc3 {[%clk 0:01:27.4]} 26. Re1 {[%clk 0:01:45.9]}
26... Qf6 {[%clk 0:01:07.2]} 27. Re7+ {[%clk 0:01:13.3]} 27... Kd8 {[%clk
0:00:37.5]} 28. R7xe6 {[%clk 0:01:13.4]} 28... Qg5 {[%clk 0:00:08.2]} 29. Re8+
{[%clk 0:00:57]} 29... Kd7 {[%clk 0:00:08.3]} 30. Rxg8 {[%clk 0:00:53.9]} 30...
Qxg8 {[%clk 0:00:04.4]} 31. Qxf5+ {[%clk 0:00:55.2]} 31... Kc6 {[%clk
0:00:04.4]} 32. Re7 {[%clk 0:00:43.7]} 32... Qd5 {[%clk 0:00:02.5]} 33. Qxd5+
{[%clk 0:00:25.2]} 33... Kxd5 {[%clk 0:00:03.8]} 34. Rxb7 {[%clk 0:00:25.8]}
34... c2 {[%clk 0:00:04.9]} 35. Bf4 {[%clk 0:00:26.2]} 35... Nc6 {[%clk
0:00:05.5]} 36. d7 {[%clk 0:00:25.1]} 36... Rf8 {[%clk 0:00:06]} 37. d8=Q+
{[%clk 0:00:20.1]} 37... Nxd8 {[%clk 0:00:06.2]} 38. Rd7+ {[%clk 0:00:20.3]}
38... Kxc5 {[%clk 0:00:06.6]} 39. Rc7+ {[%clk 0:00:09.8]} 39... Kb6 {[%clk
0:00:05.7]} 40. Rxc4 {[%clk 0:00:09.7]} 40... Ne6 {[%clk 0:00:05.6]} 41. Rxc2
{[%clk 0:00:07.2]} 41... Rxf4+ {[%clk 0:00:07]} 42. Ke3 {[%clk 0:00:08.1]} 42...
Rb4 {[%clk 0:00:07.1]} 43. b3 {[%clk 0:00:08.2]} 43... a5 {[%clk 0:00:06.7]} 44.
Rh2 {[%clk 0:00:06.1]} 44... Rd4 {[%clk 0:00:06.6]} 45. Rh6 {[%clk 0:00:06.3]}
45... Rd6 {[%clk 0:00:08.1]} 46. Rg6 {[%clk 0:00:03.1]} 46... Kc6 {[%clk
0:00:07.7]} 47. Rg2 {[%clk 0:00:03.1]} 47... Nc5 {[%clk 0:00:08.9]} 48. Rc2
{[%clk 0:00:03.4]} 48... Kb5 {[%clk 0:00:07.8]} 49. Ke2 {[%clk 0:00:03.1]} 49...
Rd5 {[%clk 0:00:08]} 50. Rc4 {[%clk 0:00:02.9]} 50... Na6 {[%clk 0:00:06.2]} 51.
Rh4 {[%clk 0:00:02.6]} 51... Nb4 {[%clk 0:00:06.9]} 52. a3 {[%clk 0:00:02.2]}
52... Nc2 {[%clk 0:00:07.9]} 0-1